[Event "WTCC-50 2018"]
[Site "Radebeul"]
[Date "2018.07.07"]
[Round "1"]
[White "Plotkin, Victor"]
[Black "Nuernberger, Thomas"]
[Result "1-0"]
[ECO "B22"]
[WhiteElo "2248"]
[BlackElo "2020"]
[Annotator "NA"]
[PlyCount "123"]
[EventDate "2018.07.07"]
[EventType "team-tourn"]
[EventCountry "GER"]
[SourceTitle "playchess.com"]
[Source "ChessBase"]
[SourceQuality "1"]
[TimeControl "40/5400+30:1800+30"]

1. e4 {[%emt 0:00:00]} c5 {[%emt 0:00:00]} 2. c3 {[%emt 0:00:00]} e5 {[%emt 0:00:09]} 3. Nf3 {[%emt 0:02:17]} Nc6 {[%emt 0:00:26]} 4. Bc4 {[%emt 0:03:01]} Be7 {[%emt 0:00:42]} 5. d4 {[%emt 0:00:24]} cxd4 {[%emt 0:00:43]} 6. cxd4 {[%emt 0:00:20]} exd4 {[%emt 0:01:46]} 7. Nxd4 {[%emt 0:00:51]} Nf6 {[%emt 0:00:41]} 8. Nc3 {[%emt 0:00:58]} O-O {[%emt 0:01:40]} 9. O-O {[%emt 0:00:27]} a6 {[%emt 0:00:39]} 10. Nf5 {[%emt 0:01:25]} b5 {[%emt 0:04:27]} 11. Bb3 {[%emt 0:02:18]} d6 {[%emt 0:03:15]} 12. Nxe7+ {[%emt 0:00:51]} Qxe7 {[%emt 0:00:15]} 13. Re1 {[%emt 0:03:00]} Na5 {[%emt 0:04:24]} 14. Bc2 {[%emt 0:01:26]} Bb7 {[%emt 0:01:45]} 15. Bf4 {[%emt 0:03:09]} Rad8 {[%emt 0:00:58]} 16. Qd4 {[%emt 0:02:40]} Nc4 {[%emt 0:06:33]} 17. a4 {[%emt 0:04:55]} Nh5 {[%emt 0:04:16]} 18. Bg3 {[%emt 0:10:25]} Nxg3 {[%emt 0:10:52]} 19. hxg3 {[%emt 0:00:20]} Qe5 {[%emt 0:01:58]} 20. Qxe5 {[%emt 0:01:22]} dxe5 {[%emt 0:00:07]} 21. axb5 {[%emt 0:03:12]} axb5 {[%emt 0:06:37]} 22. Ra7 {[%emt 0:13:22]} Rd2 {[%emt 0:05:40]} 23. Re2 {[%emt 0:11:01]} Rxe2 {[%emt 0:04:43]} 24. Nxe2 {[%emt 0:00:03]} Nd6 {[%emt 0:00:17]} 25. Nc3 {[%emt 0:03:07]} b4 {[%emt 0:02:23]} 26. Na2 {[%emt 0:04:38]} b3 {[%emt 0:02:42]} 27. Bxb3 {[%emt 0:00:10]} Bxe4 {[%emt 0:00:05]} 28. Nc3 {[%emt 0:00:31]} Bg6 {[%emt 0:00:22]} 29. Bd5 {[%emt 0:04:13]} Rb8 {[%emt 0:05:35]} 30. b4 {[%emt 0:07:52]} Kf8 {[%emt 0:04:25]} 31. Bc6 {[%emt 0:02:08]} Rc8 {[%emt 0:07:01]} 32. Ra6 {[%emt 0:07:35]} Bd3 {[%emt 0:04:30]} 33. b5 {[%emt 0:00:41]} f5 {[%emt 0:04:24]} 34. f3 {[%emt 0:01:10]} e4 {[%emt 0:01:47]} 35. Kf2 {[%emt 0:00:36]} Rb8 {[%emt 0:02:21]} 36. Bxe4 {[%emt 0:05:16]} Nxe4+ {[%emt 0:01:49]} 37. fxe4 {[%emt 0:00:06]} Bxb5 {[%emt 0:00:54]} 38. Ra5 {[%emt 0:00:33]} Bd7 {[%emt 0:01:57]} 39. exf5 {[%emt 0:00:34]} Rb2+ {[%emt 0:00:20]} 40. Kg1 {[%emt 0:02:03]} Bc6 {[%emt 0:00:57]} 41. Nd5 {[%emt 0:30:22]} Rd2 {[%emt 0:31:02]} 42. Nf4 {[%emt 0:00:22]} Kf7 {[%emt 0:01:25]} 43. g4 {[%emt 0:00:00]} g6 {[%emt 0:00:00]} 44. fxg6+ {[%emt 0:00:00]} hxg6 {[%emt 0:00:00]} 45. Kh2 {[%emt 0:00:00]} Rc2 {[%emt 0:00:00]} 46. Kg3 {[%emt 0:00:00]} Rb2 {[%emt 0:00:00]} 47. Rc5 {[%emt 0:00:00]} Be4 {[%emt 0:00:00]} 48. Re5 {[%emt 0:00:00]} Bb7 {[%emt 0:00:00]} 49. Rc5 {[%emt 0:00:00]} Be4 {[%emt 0:00:00]} 50. Kh4 {[%emt 0:00:00]} Rb6 {[%emt 0:00:00]} 51. Kg5 {[%emt 0:00:00]} Rb7 {[%emt 0:00:00]} 52. g3 {[%emt 0:00:00]} Bb1 {[%emt 0:00:00]} 53. Kh6 {[%emt 0:00:00]} Be4 {[%emt 0:00:00]} 54. Ra5 {[%emt 0:00:00]} Bb1 {[%emt 0:00:00]} 55. Ra6 {[%emt 0:00:00]} Rb3 {[%emt 0:00:00]} 56. Ra7+ {[%emt 0:00:00]} Kf6 {[%emt 0:00:00]} 57. Nxg6 {[%emt 0:00:00]} Rxg3 {[%emt 0:00:00]} 58. g5+ {[%emt 0:00:00]} Kf5 {[%emt 0:00:00]} 59. Ra5+ {[%emt 0:00:00]} Ke6 {[%emt 0:00:00]} 60. Re5+ {[%emt 0:00:00]} Kf7 {[%emt 0:00:45]} 61. Re7+ {[%emt 0:00:00]} Kg8 {[%emt 0:00:35]} 62. Rg7# 1-0

[Event "WTCC-50 2018"]
[Site "Radebeul"]
[Date "2018.07.07"]
[Round "1"]
[White "Teo, Kok Siong"]
[Black "Dellos, Peter"]
[Result "1-0"]
[ECO "D45"]
[WhiteElo "2213"]
[BlackElo "1860"]
[Annotator "NA"]
[PlyCount "33"]
[EventDate "2018.07.07"]
[EventType "team-tourn"]
[EventCountry "GER"]
[SourceTitle "playchess.com"]
[Source "ChessBase"]
[SourceQuality "1"]
[TimeControl "40/5400+30:1800+30"]

1. d4 {[%emt 0:00:00]} d5 {[%emt 0:00:02]} 2. c4 {[%emt 0:00:00]} c6 {[%emt 0:00:25]} 3. Nf3 {[%emt 0:00:38]} Nf6 {[%emt 0:03:47]} 4. e3 {[%emt 0:00:33]} e6 {[%emt 0:01:13]} 5. Nc3 {[%emt 0:00:08]} Be7 {[%emt 0:01:06]} 6. b3 {[%emt 0:01:19]} O-O {[%emt 0:01:18]} 7. Bd3 {[%emt 0:00:15]} Nbd7 {[%emt 0:09:37]} 8. O-O {[%emt 0:00:39]} c5 {[%emt 0:06:38]} 9. Bb2 {[%emt 0:01:17]} cxd4 {[%emt 0:01:29]} 10. exd4 {[%emt 0:00:17]} b6 {[%emt 0:01:17]} 11. cxd5 {[%emt 0:06:37]} exd5 {[%emt 0:07:18]} 12. Ne5 {[%emt 0:07:12]} Bb7 {[%emt 0:08:46]} 13. Rc1 {[%emt 0:07:51]} Rc8 {[%emt 0:11:20]} 14. Qf3 {[%emt 0:01:32]} a6 {[%emt 0:10:24]} 15. Nxd7 {[%emt 0:22:28]} Nxd7 {[%emt 0:08:09]} 16. Nxd5 {[%emt 0:01:41]} Nf6 {[%emt 0:04:08]} 17. Nxf6+ 1-0

[Event "WTCC-50 2018"]
[Site "Radebeul"]
[Date "2018.07.07"]
[Round "1"]
[White "Koehler, Gerhard"]
[Black "De Cat, Ben"]
[Result "1-0"]
[ECO "A10"]
[WhiteElo "2181"]
[BlackElo "1906"]
[Annotator "NA"]
[PlyCount "91"]
[EventDate "2018.07.07"]
[EventType "team-tourn"]
[EventCountry "GER"]
[SourceTitle "playchess.com"]
[Source "ChessBase"]
[SourceQuality "1"]
[TimeControl "40/5400+30:1800+30"]

1. c4 {[%emt 0:00:00]} d6 {[%emt 0:00:00]} 2. Nc3 {[%emt 0:00:00]} e5 {[%emt 0:00:10]} 3. g3 {[%emt 0:00:00]} Nf6 {[%emt 0:00:49]} 4. Bg2 {[%emt 0:00:00]} Be7 {[%emt 0:00:09]} 5. Nf3 {[%emt 0:02:01]} c6 {[%emt 0:00:27]} 6. O-O {[%emt 0:01:45]} Bg4 {[%emt 0:01:40]} 7. h3 {[%emt 0:03:29]} Bxf3 {[%emt 0:00:34]} 8. Bxf3 {[%emt 0:00:19]} a5 {[%emt 0:02:04]} 9. d4 {[%emt 0:04:57]} O-O {[%emt 0:00:36]} 10. Be3 {[%emt 0:02:28]} Nbd7 {[%emt 0:02:41]} 11. Bg2 {[%emt 0:00:52]} Qc7 {[%emt 0:04:47]} 12. Qd2 {[%emt 0:02:49]} Rad8 {[%emt 0:03:27]} 13. Rfd1 {[%emt 0:04:41]} Rfe8 {[%emt 0:04:20]} 14. Rac1 {[%emt 0:11:52]} Nf8 {[%emt 0:04:45]} 15. d5 {[%emt 0:01:01]} Ng6 {[%emt 0:03:53]} 16. Qc2 {[%emt 0:07:29]} Rc8 {[%emt 0:04:04]} 17. Qb3 {[%emt 0:10:17]} c5 {[%emt 0:02:40]} 18. Nb5 {[%emt 0:01:25]} Qb8 {[%emt 0:01:18]} 19. Qc3 {[%emt 0:00:42]} b6 {[%emt 0:00:27]} 20. Qc2 {[%emt 0:03:14]} Rcd8 {[%emt 0:02:00]} 21. Rf1 {[%emt 0:03:16]} Rf8 {[%emt 0:02:40]} 22. Bd2 {[%emt 0:01:07]} Ne8 {[%emt 0:02:00]} 23. Be4 {[%emt 0:02:16]} Nf6 {[%emt 0:01:29]} 24. Bf5 {[%emt 0:02:09]} Nh8 {[%emt 0:03:29]} 25. h4 {[%emt 0:00:45]} g6 {[%emt 0:00:32]} 26. Bh3 {[%emt 0:00:06]} Ne8 {[%emt 0:01:37]} 27. e4 {[%emt 0:01:55]} Ng7 {[%emt 0:04:05]} 28. Bh6 {[%emt 0:04:39]} f6 {[%emt 0:03:02]} 29. Kg2 {[%emt 0:04:16]} Nf7 {[%emt 0:01:10]} 30. Be3 {[%emt 0:01:20]} h6 {[%emt 0:04:01]} 31. Qd2 {[%emt 0:04:44]} Kh7 {[%emt 0:04:06]} 32. Be6 {[%emt 0:01:30]} g5 {[%emt 0:00:31]} 33. Rh1 {[%emt 0:02:00]} Kg6 {[%emt 0:06:28]} 34. f4 {[%emt 0:04:34]} gxf4 {[%emt 0:07:55]} 35. gxf4 {[%emt 0:03:10]} exf4 {[%emt 0:04:01]} 36. Bxf7+ {[%emt 0:01:20]} Kxf7 {[%emt 0:02:12]} 37. Bxf4 {[%emt 0:00:25]} Nh5 {[%emt 0:00:45]} 38. Kh2 {[%emt 0:04:29]} f5 {[%emt 0:05:14]} 39. Rcf1 {[%emt 0:02:17]} Bf6 {[%emt 0:03:25]} 40. Bxh6 {[%emt 0:01:41]} Rh8 {[%emt 0:01:14]} 41. Rxf5 {[%emt 0:30:38]} Rdg8 {[%emt 0:31:04]} 42. Rhf1 {[%emt 0:00:00]} Ke7 {[%emt 0:00:00]} 43. Rxh5 {[%emt 0:00:00]} Qe8 {[%emt 0:00:00]} 44. Qf4 {[%emt 0:00:00]} Rxh6 {[%emt 0:00:00]} 45. Qxd6+ {[%emt 0:00:00]} Kf7 {[%emt 0:00:00]} 46. Rxh6 {[%emt 0:00:00]} 1-0

[Event "WTCC-50 2018"]
[Site "Radebeul"]
[Date "2018.07.07"]
[Round "1"]
[White "Simon, Ralf Axel"]
[Black "Wong, Meng Kong"]
[Result "1/2-1/2"]
[ECO "A04"]
[WhiteElo "2156"]
[BlackElo "2248"]
[Annotator "NA"]
[PlyCount "122"]
[EventDate "2018.07.07"]
[EventType "team-tourn"]
[EventCountry "GER"]
[SourceTitle "playchess.com"]
[Source "ChessBase"]
[SourceQuality "1"]
[TimeControl "40/5400+30:1800+30"]

1. Nf3 {[%emt 0:00:00]} g6 {[%emt 0:00:31]} 2. e4 {[%emt 0:04:22]} d6 {[%emt 0:00:43]} 3. d4 {[%emt 0:00:12]} Nf6 {[%emt 0:00:44]} 4. Bd3 {[%emt 0:00:15]} Bg7 {[%emt 0:02:35]} 5. O-O {[%emt 0:00:14]} O-O {[%emt 0:00:06]} 6. Re1 {[%emt 0:00:43]} c5 {[%emt 0:01:30]} 7. d5 {[%emt 0:03:12]} e6 {[%emt 0:00:56]} 8. c4 {[%emt 0:00:16]} Na6 {[%emt 0:03:15]} 9. Nc3 {[%emt 0:06:49]} Nc7 {[%emt 0:01:22]} 10. Rb1 {[%emt 0:05:48]} b6 {[%emt 0:02:07]} 11. h3 {[%emt 0:18:51]} e5 {[%emt 0:09:19]} 12. Bf1 {[%emt 0:03:45]} Nfe8 {[%emt 0:03:18]} 13. a3 {[%emt 0:04:51]} f5 {[%emt 0:00:50]} 14. b4 {[%emt 0:01:46]} Bf6 {[%emt 0:02:30]} 15. bxc5 {[%emt 0:06:05]} bxc5 {[%emt 0:00:07]} 16. Re2 {[%emt 0:06:43]} Ng7 {[%emt 0:11:30]} 17. Reb2 {[%emt 0:00:51]} f4 {[%emt 0:12:05]} 18. Rb8 {[%emt 0:09:24]} Qd7 {[%emt 0:04:35]} 19. Rxa8 {[%emt 0:10:28]} Nxa8 {[%emt 0:00:06]} 20. Nd2 {[%emt 0:00:57]} Bd8 {[%emt 0:03:40]} 21. Qa4 {[%emt 0:05:21]} Qxa4 {[%emt 0:07:57]} 22. Nxa4 {[%emt 0:00:01]} Nb6 {[%emt 0:01:56]} 23. Nc3 {[%emt 0:00:38]} Ne8 {[%emt 0:06:19]} 24. Nb5 {[%emt 0:03:14]} Rf7 {[%emt 0:00:13]} 25. Nb3 {[%emt 0:02:37]} Na4 {[%emt 0:01:00]} 26. Bd2 {[%emt 0:00:08]} a6 {[%emt 0:01:14]} 27. Nc3 {[%emt 0:00:08]} Nxc3 {[%emt 0:00:19]} 28. Bxc3 {[%emt 0:00:01]} Rb7 {[%emt 0:00:34]} 29. Bd3 {[%emt 0:01:30]} Bd7 {[%emt 0:05:09]} 30. Nd2 {[%emt 0:02:30]} Rxb1+ {[%emt 0:00:14]} 31. Bxb1 {[%emt 0:00:05]} Ba4 {[%emt 0:00:25]} 32. Kf1 {[%emt 0:01:31]} g5 {[%emt 0:01:33]} 33. Ke2 {[%emt 0:00:38]} h5 {[%emt 0:00:08]} 34. Kd3 {[%emt 0:00:17]} g4 {[%emt 0:00:48]} 35. hxg4 {[%emt 0:00:01]} hxg4 {[%emt 0:00:07]} 36. Bc2 {[%emt 0:02:01]} Bxc2+ {[%emt 0:02:23]} 37. Kxc2 {[%emt 0:00:01]} Bh4 {[%emt 0:00:14]} 38. f3 {[%emt 0:00:15]} Be1 {[%emt 0:00:07]} 39. Nb3 {[%emt 0:01:08]} Bxc3 {[%emt 0:00:08]} 40. Kxc3 {[%emt 0:00:01]} Kf7 {[%emt 0:00:43]} 41. Na5 {[%emt 0:30:12]} Nf6 {[%emt 0:35:56]} 42. Kd3 {[%emt 0:00:00]} Ke8 {[%emt 0:00:00]} 43. Nb3 {[%emt 0:00:00]} Kd8 {[%emt 0:00:00]} 44. a4 {[%emt 0:00:00]} g3 {[%emt 0:00:00]} 45. Ke2 {[%emt 0:00:00]} Kc7 {[%emt 0:00:00]} 46. a5 {[%emt 0:00:00]} Ng8 {[%emt 0:00:00]} 47. Nd2 {[%emt 0:00:00]} Kd8 {[%emt 0:00:00]} 48. Nb3 {[%emt 0:00:00]} Ne7 {[%emt 0:00:00]} 49. Nd2 {[%emt 0:00:00]} Ng6 {[%emt 0:00:00]} 50. Nb3 {[%emt 0:00:00]} Kd7 {[%emt 0:00:00]} 51. Nd2 {[%emt 0:00:00]} Nh8 {[%emt 0:00:00]} 52. Nb3 {[%emt 0:00:00]} Nf7 {[%emt 0:00:00]} 53. Nd2 {[%emt 0:00:00]} Kc7 {[%emt 0:00:00]} 54. Nb3 {[%emt 0:00:00]} Nd8 {[%emt 0:00:00]} 55. Kd3 {[%emt 0:00:00]} Kd7 {[%emt 0:00:00]} 56. Nd2 {[%emt 0:00:00]} Nf7 {[%emt 0:00:00]} 57. Ke2 {[%emt 0:00:00]} Ng5 {[%emt 0:00:00]} 58. Kf1 {[%emt 0:00:00]} Nh7 {[%emt 0:00:00]} 59. Ke2 {[%emt 0:00:00]} Nf6 {[%emt 0:00:00]} 60. Kd3 {[%emt 0:00:00]} Kc7 {[%emt 0:00:00]} 61. Nb3 {[%emt 0:00:00]} Ng8 1/2-1/2

[Event "WTCC-50 2018"]
[Site "Radebeul"]
[Date "2018.07.07"]
[Round "1"]
[White "Barron, Michael"]
[Black "Fuchs, Joachim"]
[Result "1-0"]
[ECO "C78"]
[WhiteElo "2123"]
[BlackElo "1956"]
[Annotator "NA"]
[PlyCount "77"]
[EventDate "2018.07.07"]
[EventType "team-tourn"]
[EventCountry "GER"]
[SourceTitle "playchess.com"]
[Source "ChessBase"]
[SourceQuality "1"]
[TimeControl "40/5400+30:1800+30"]

1. e4 {[%emt 0:00:00]} e5 {[%emt 0:00:01]} 2. Nf3 {[%emt 0:00:00]} Nc6 {[%emt 0:00:50]} 3. Bb5 {[%emt 0:00:00]} a6 {[%emt 0:00:11]} 4. Ba4 {[%emt 0:00:00]} Nf6 {[%emt 0:00:32]} 5. O-O {[%emt 0:00:00]} b5 {[%emt 0:00:07]} 6. Bb3 {[%emt 0:00:00]} Be7 {[%emt 0:01:04]} 7. d4 {[%emt 0:00:25]} d6 {[%emt 0:04:50]} 8. c3 {[%emt 0:01:02]} O-O {[%emt 0:00:54]} 9. Nbd2 {[%emt 0:00:08]} Bg4 {[%emt 0:02:46]} 10. h3 {[%emt 0:00:15]} Bh5 {[%emt 0:00:17]} 11. g4 {[%emt 0:05:50]} Nxg4 {[%emt 0:06:03]} 12. hxg4 {[%emt 0:00:02]} Bxg4 {[%emt 0:00:03]} 13. Bd5 {[%emt 0:01:19]} Qd7 {[%emt 0:02:37]} 14. dxe5 {[%emt 0:08:29]} Bh3 {[%emt 0:13:48]} 15. Nd4 {[%emt 0:10:41]} Nxd4 {[%emt 0:06:22]} 16. Bxa8 {[%emt 0:00:50]} Bxf1 {[%emt 0:01:39]} 17. Nxf1 {[%emt 0:00:15]} Rxa8 {[%emt 0:03:05]} 18. cxd4 {[%emt 0:00:13]} dxe5 {[%emt 0:00:52]} 19. Be3 {[%emt 0:00:04]} exd4 {[%emt 0:06:07]} 20. Qxd4 {[%emt 0:00:05]} Qg4+ {[%emt 0:01:41]} 21. Ng3 {[%emt 0:00:04]} Rd8 {[%emt 0:06:27]} 22. Qe5 {[%emt 0:00:13]} Bf6 {[%emt 0:07:47]} 23. Qxc7 {[%emt 0:01:04]} Rc8 {[%emt 0:04:00]} 24. Qf4 {[%emt 0:00:22]} Qxf4 {[%emt 0:02:51]} 25. Bxf4 {[%emt 0:00:02]} Bxb2 {[%emt 0:00:14]} 26. Rd1 {[%emt 0:00:02]} h6 {[%emt 0:05:08]} 27. Nf5 {[%emt 0:00:50]} Ba3 {[%emt 0:03:37]} 28. Bd6 {[%emt 0:01:55]} Rd8 {[%emt 0:02:43]} 29. e5 {[%emt 0:03:12]} Bb2 {[%emt 0:01:16]} 30. Rb1 {[%emt 0:02:56]} Bc3 {[%emt 0:00:44]} 31. Rb3 {[%emt 0:00:26]} Bd2 {[%emt 0:01:03]} 32. Ra3 {[%emt 0:07:35]} Ra8 {[%emt 0:00:23]} 33. Rd3 {[%emt 0:00:16]} Be1 {[%emt 0:00:27]} 34. Kf1 {[%emt 0:00:29]} Ba5 {[%emt 0:00:28]} 35. Rg3 {[%emt 0:00:04]} g6 {[%emt 0:03:24]} 36. Nxh6+ {[%emt 0:02:37]} Kg7 {[%emt 0:00:14]} 37. Nf5+ {[%emt 0:03:37]} Kg8 {[%emt 0:00:45]} 38. Be7 {[%emt 0:02:22]} Bd8 {[%emt 0:00:59]} 39. Bf6 {[%emt 0:00:20]} 1-0

[Event "WTCC-50 2018"]
[Site "Radebeul"]
[Date "2018.07.07"]
[Round "1"]
[White "Ruether, Rudolf"]
[Black "Yahiaoui, Abdelkrim"]
[Result "1-0"]
[ECO "D53"]
[WhiteElo "2118"]
[BlackElo "2106"]
[Annotator "NA"]
[PlyCount "103"]
[EventDate "2018.07.07"]
[EventType "team-tourn"]
[EventCountry "GER"]
[SourceTitle "playchess.com"]
[Source "ChessBase"]
[SourceQuality "1"]
[TimeControl "40/5400+30:1800+30"]

1. d4 {[%emt 0:00:00]} e6 {[%emt 0:00:00]} 2. c4 {[%emt 0:00:10]} d5 {[%emt 0:00:00]} 3. Nc3 {[%emt 0:01:01]} Nf6 {[%emt 0:00:12]} 4. Bg5 {[%emt 0:00:49]} Be7 {[%emt 0:00:21]} 5. e3 {[%emt 0:00:50]} c6 {[%emt 0:00:39]} 6. Nf3 {[%emt 0:01:13]} Nbd7 {[%emt 0:00:43]} 7. cxd5 {[%emt 0:05:21]} exd5 {[%emt 0:00:40]} 8. Bd3 {[%emt 0:00:13]} Nf8 {[%emt 0:00:42]} 9. Qc2 {[%emt 0:01:13]} Ng6 {[%emt 0:02:57]} 10. O-O {[%emt 0:03:49]} O-O {[%emt 0:03:19]} 11. Rfe1 {[%emt 0:04:13]} Re8 {[%emt 0:01:04]} 12. Rab1 {[%emt 0:06:31]} Bd7 {[%emt 0:03:01]} 13. b4 {[%emt 0:14:39]} a6 {[%emt 0:00:40]} 14. a4 {[%emt 0:00:48]} Ne4 {[%emt 0:05:56]} 15. Bxe7 {[%emt 0:11:03]} Qxe7 {[%emt 0:01:36]} 16. b5 {[%emt 0:01:05]} axb5 {[%emt 0:07:10]} 17. axb5 {[%emt 0:00:15]} Nxc3 {[%emt 0:02:13]} 18. Qxc3 {[%emt 0:00:15]} Qd6 {[%emt 0:07:14]} 19. bxc6 {[%emt 0:03:37]} Bxc6 {[%emt 0:00:50]} 20. Bxg6 {[%emt 0:07:06]} hxg6 {[%emt 0:00:54]} 21. Ne5 {[%emt 0:00:51]} Ra6 {[%emt 0:02:02]} 22. g3 {[%emt 0:05:53]} Rea8 {[%emt 0:02:46]} 23. Rec1 {[%emt 0:09:05]} Ra3 {[%emt 0:01:53]} 24. Qc5 {[%emt 0:06:13]} Qxc5 {[%emt 0:03:09]} 25. Rxc5 {[%emt 0:00:03]} Ra1 {[%emt 0:00:13]} 26. Rxa1 {[%emt 0:01:23]} Rxa1+ 27. Kg2 Ra6 {[%emt 0:00:48]} 28. Nxc6 {[%emt 0:01:51]} bxc6 {[%emt 0:00:13]} 29. Rc2 {[%emt 0:00:06]} Kf8 {[%emt 0:00:15]} 30. Rb2 {[%emt 0:00:09]} Ra7 {[%emt 0:01:24]} 31. Rb8+ {[%emt 0:04:12]} Ke7 {[%emt 0:00:27]} 32. Rg8 {[%emt 0:00:54]} Kf6 {[%emt 0:01:48]} 33. h4 {[%emt 0:00:50]} Re7 {[%emt 0:03:05]} 34. Rc8 {[%emt 0:01:53]} Re6 {[%emt 0:00:16]} 35. Rc7 {[%emt 0:00:11]} Rd6 {[%emt 0:01:09]} 36. f4 {[%emt 0:03:05]} Ke6 {[%emt 0:04:15]} 37. Kf3 {[%emt 0:00:22]} f5 {[%emt 0:01:32]} 38. Rxg7 {[%emt 0:00:43]} Kf6 {[%emt 0:00:22]} 39. Rc7 {[%emt 0:00:20]} Re6 {[%emt 0:00:39]} 40. Rd7 {[%emt 0:02:44]} Re7 {[%emt 0:01:58]} 41. Rxe7 {[%emt 0:32:15]} Kxe7 {[%emt 0:30:09]} 42. g4 {[%emt 0:00:39]} fxg4+ {[%emt 0:01:38]} 43. Kxg4 {[%emt 0:00:31]} Kf6 {[%emt 0:00:08]} 44. h5 {[%emt 0:02:51]} gxh5+ {[%emt 0:00:39]} 45. Kxh5 {[%emt 0:00:06]} Kf5 {[%emt 0:00:50]} 46. Kh4 {[%emt 0:00:00]} Ke4 {[%emt 0:00:00]} 47. Kg3 {[%emt 0:00:00]} Kxe3 {[%emt 0:00:00]} 48. f5 {[%emt 0:00:00]} Kxd4 {[%emt 0:00:00]} 49. f6 {[%emt 0:00:00]} c5 {[%emt 0:00:00]} 50. f7 {[%emt 0:00:00]} c4 {[%emt 0:00:00]} 51. f8=Q {[%emt 0:00:00]} c3 {[%emt 0:00:00]} 52. Qa3 {[%emt 0:00:00]} 1-0

[Event "WTCC-50 2018"]
[Site "Radebeul"]
[Date "2018.07.07"]
[Round "1"]
[White "Birkholz, Olga"]
[Black "Schulz, Klaus Juergen"]
[Result "0-1"]
[ECO "A48"]
[WhiteElo "2068"]
[BlackElo "2324"]
[Annotator "NA"]
[PlyCount "106"]
[EventDate "2018.07.07"]
[EventType "team-tourn"]
[EventCountry "GER"]
[SourceTitle "playchess.com"]
[Source "ChessBase"]
[SourceQuality "1"]
[TimeControl "40/5400+30:1800+30"]

1. d4 {[%emt 0:00:28]} Nf6 {[%emt 0:00:16]} 2. Nf3 {[%emt 0:00:10]} g6 {[%emt 0:01:08]} 3. Bf4 {[%emt 0:01:20]} Bg7 {[%emt 0:01:16]} 4. Nc3 {[%emt 0:00:38]} d5 {[%emt 0:07:33]} 5. e3 {[%emt 0:01:31]} O-O {[%emt 0:00:40]} 6. Bd3 {[%emt 0:00:40]} c5 {[%emt 0:04:56]} 7. O-O {[%emt 0:01:02]} a6 {[%emt 0:27:18]} 8. dxc5 {[%emt 0:07:33]} Qa5 {[%emt 0:03:35]} 9. Nd4 {[%emt 0:04:55]} Qxc5 {[%emt 0:02:39]} 10. Nb3 {[%emt 0:05:55]} Qc6 {[%emt 0:06:59]} 11. a4 {[%emt 0:04:06]} Nbd7 {[%emt 0:13:28]} 12. Nd4 {[%emt 0:14:40]} Qc5 {[%emt 0:03:45]} 13. Nb3 {[%emt 0:00:02]} Qc6 {[%emt 0:03:21]} 14. Nd4 {[%emt 0:00:01]} Qb6 {[%emt 0:05:00]} 15. a5 {[%emt 0:01:32]} Qa7 {[%emt 0:00:24]} 16. Nf3 {[%emt 0:10:50]} Re8 {[%emt 0:05:13]} 17. Ne5 {[%emt 0:07:51]} Nxe5 18. Bxe5 {[%emt 0:00:03]} Be6 {[%emt 0:04:25]} 19. Bd4 {[%emt 0:12:25]} Qb8 {[%emt 0:00:03]} 20. f4 {[%emt 0:01:14]} Ng4 21. Be2 {[%emt 0:05:40]} Nxe3 {[%emt 0:04:47]} 22. Bxe3 {[%emt 0:01:05]} d4 {[%emt 0:00:01]} 23. f5 {[%emt 0:10:21]} Bxf5 {[%emt 0:01:07]} 24. Bf4 {[%emt 0:04:21]} e5 {[%emt 0:00:26]} 25. Bg3 {[%emt 0:01:11]} dxc3 {[%emt 0:00:12]} 26. bxc3 {[%emt 0:00:01]} Qc7 {[%emt 0:00:16]} 27. c4 {[%emt 0:00:47]} Rad8 {[%emt 0:00:11]} 28. Qc1 {[%emt 0:00:35]} Qc6 {[%emt 0:00:36]} 29. Rb1 {[%emt 0:00:24]} Rd7 {[%emt 0:00:59]} 30. Bf2 {[%emt 0:00:25]} Qa4 {[%emt 0:00:33]} 31. Bb6 {[%emt 0:02:18]} Qxc2 {[%emt 0:00:23]} 32. Qxc2 {[%emt 0:00:09]} Bxc2 {[%emt 0:00:01]} 33. Rbc1 {[%emt 0:00:19]} Ba4 {[%emt 0:00:59]} 34. Ra1 {[%emt 0:00:29]} Bc6 {[%emt 0:00:09]} 35. Rad1 {[%emt 0:00:01]} Ree7 {[%emt 0:00:53]} 36. Bc5 {[%emt 0:00:54]} Rxd1 {[%emt 0:00:08]} 37. Rxd1 {[%emt 0:00:25]} Rd7 {[%emt 0:00:08]} 38. Rxd7 {[%emt 0:00:15]} Bxd7 {[%emt 0:00:01]} 39. Bf3 {[%emt 0:00:01]} Bc6 {[%emt 0:00:19]} 40. Kf2 {[%emt 0:00:49]} Bxf3 {[%emt 0:00:57]} 41. Kxf3 {[%emt 0:30:14]} f5 {[%emt 0:30:08]} 42. g4 {[%emt 0:00:56]} Kf7 {[%emt 0:01:06]} 43. h3 {[%emt 0:00:00]} Ke6 {[%emt 0:00:00]} 44. Ke3 {[%emt 0:00:00]} Bf6 {[%emt 0:00:00]} 45. Kf3 {[%emt 0:00:00]} Be7 {[%emt 0:00:00]} 46. Be3 {[%emt 0:00:00]} Bb4 {[%emt 0:00:00]} 47. Bb6 {[%emt 0:00:00]} Kd7 {[%emt 0:00:00]} 48. Kg3 {[%emt 0:00:00]} Be1+ {[%emt 0:00:00]} 49. Kf3 {[%emt 0:00:00]} Kc6 {[%emt 0:00:00]} 50. Ke2 {[%emt 0:00:00]} Bb4 {[%emt 0:00:00]} 51. gxf5 {[%emt 0:00:00]} gxf5 {[%emt 0:00:00]} 52. Kf3 {[%emt 0:00:00]} Bd6 {[%emt 0:00:00]} 53. Kg3 {[%emt 0:00:00]} Bc7 0-1

[Event "WTCC-50 2018"]
[Site "Radebeul"]
[Date "2018.07.07"]
[Round "1"]
[White "Schober, Ralf"]
[Black "Goh, Cheng Hong"]
[Result "1/2-1/2"]
[ECO "A40"]
[WhiteElo "2066"]
[BlackElo "2323"]
[Annotator "NA"]
[PlyCount "42"]
[EventDate "2018.07.07"]
[EventType "team-tourn"]
[EventCountry "GER"]
[SourceTitle "playchess.com"]
[Source "ChessBase"]
[SourceQuality "1"]
[TimeControl "40/5400+30:1800+30"]

1. d4 {[%emt 0:00:00]} g6 {[%emt 0:00:00]} 2. Nf3 {[%emt 0:00:07]} Bg7 {[%emt 0:00:00]} 3. Nc3 {[%emt 0:02:47]} c5 {[%emt 0:01:05]} 4. e4 {[%emt 0:04:35]} Qa5 {[%emt 0:01:42]} 5. Bd2 {[%emt 0:01:29]} cxd4 {[%emt 0:00:31]} 6. Nd5 {[%emt 0:00:19]} Qd8 {[%emt 0:01:01]} 7. Bf4 {[%emt 0:00:55]} d6 {[%emt 0:00:35]} 8. Nxd4 {[%emt 0:01:41]} e6 {[%emt 0:03:40]} 9. Nb5 {[%emt 0:02:24]} exd5 {[%emt 0:08:51]} 10. Nxd6+ {[%emt 0:04:28]} Kf8 {[%emt 0:02:18]} 11. Qxd5 {[%emt 0:03:49]} Be6 {[%emt 0:00:43]} 12. Qxb7 {[%emt 0:11:03]} Nd7 {[%emt 0:01:41]} 13. Rd1 {[%emt 0:03:40]} Rb8 {[%emt 0:10:47]} 14. Qxa7 {[%emt 0:02:48]} Bxb2 15. Bc4 Ra8 {[%emt 0:30:50]} 16. Qb7 {[%emt 0:04:00]} Bc3+ {[%emt 0:01:01]} 17. Ke2 {[%emt 0:00:18]} Nc5 {[%emt 0:03:26]} 18. Qc6 {[%emt 0:06:01]} Qa5 {[%emt 0:00:21]} 19. Bxe6 {[%emt 0:01:13]} Nxe6 {[%emt 0:00:28]} 20. Be3 {[%emt 0:02:23]} Ne7 {[%emt 0:01:47]} 21. Qb7 {[%emt 0:01:29]} Qa6+ 1/2-1/2